bitfinex/quotes_BTCUSD_20240810
["timestamp","ask_amount","ask_price","bid_price","bid_amount"]
[1723284298571,1.43022029,60992.0,60991.0,0.0009141]
[1723284298776,1.44422029,60992.0,60991.0,0.0009141]
[1723284298996,1.43022029,60992.0,60991.0,0.0009141]
[1723284299604,1.44422029,60992.0,60991.0,0.0009141]
[1723284299994,1.43022029,60992.0,60991.0,0.0009141]
[1723284300191,1.41622029,60992.0,60991.0,0.0009141]
[1723284300597,1.43022029,60992.0,60991.0,0.0009141]
[1723284300984,1.50074921,60992.0,60991.0,0.0009141]
[1723284301332,1.44422029,60992.0,60991.0,0.0009141]
[1723284301758,1.39650827,60992.0,60991.0,0.0009141]
[1723284302260,1.44694903,60992.0,60991.0,0.0009141]
[1723284302452,0.90435692,60992.0,60991.0,0.0009141]
[1723284303428,0.89035692,60992.0,60991.0,0.0009141]
[1723284303684,1.00435692,60992.0,60991.0,0.0009141]
[1723284304207,0.99035692,60992.0,60991.0,0.0009141]
[1723284304442,1.00035692,60992.0,60991.0,0.0009141]
[1723284304807,0.98635692,60992.0,60991.0,0.0009141]
[1723284305323,1.00035692,60992.0,60991.0,0.0009141]
[1723284306561,0.97635692,60992.0,60991.0,0.0009141]
[1723284306787,0.98535692,60992.0,60991.0,0.0009141]
[1723284306965,0.99935692,60992.0,60991.0,0.0009141]
[1723284312813,0.92355692,60992.0,60991.0,0.0009141]
[1723284316725,0.92438792,60992.0,60991.0,0.0009141]
[1723284319584,0.86148792,60992.0,60991.0,0.0009141]
[1723284320238,0.84748792,60992.0,60991.0,0.0009141]
[1723284320824,0.83848792,60992.0,60991.0,0.0009141]
[1723284321191,0.84648792,60992.0,60991.0,0.0009141]
[1723284321511,0.85148792,60992.0,60991.0,0.0009141]
[1723284321862,0.83848792,60992.0,60991.0,0.0009141]
[1723284322041,0.84948792,60992.0,60991.0,0.0009141]
[1723284323005,0.85648792,60992.0,60991.0,0.0009141]
[1723284327004,0.264763,60992.0,60991.0,0.0009141]
[1723284327205,0.428718,60992.0,60991.0,0.0009141]
[1723284327404,0.428718,60992.0,60991.0,0.1410141]
[1723284327610,0.264763,60992.0,60991.0,0.1410141]
[1723284327811,0.018831,60992.0,60991.0,0.1410141]
[1723284328126,0.100808,60992.0,60991.0,0.1410141]
[1723284328366,0.018831,60992.0,60991.0,0.1410141]
[1723284328751,0.100808,60992.0,60991.0,0.1410141]
[1723284328952,0.018831,60992.0,60991.0,0.1410141]
[1723284329911,0.018831,60992.0,60991.0,0.2229931]
[1723284330093,0.018831,60992.0,60991.0,0.36243612]
[1723284330294,0.018831,60992.0,60991.0,0.35915729]
[1723284330555,0.018831,60992.0,60991.0,0.52311529]
[1723284330758,0.018831,60992.0,60991.0,0.35915729]
[1723284331865,0.018831,60992.0,60991.0,0.36846126]
[1723284332065,0.018831,60992.0,60991.0,0.36845797]
[1723284332845,0.018831,60992.0,60991.0,0.53241597]
[1723284333252,0.011831,60992.0,60991.0,0.53241597]
[1723284333492,0.002831,60992.0,60991.0,0.54441597]
[1723284333688,0.002831,60992.0,60991.0,0.53241597]
[1723284333913,0.000831,60992.0,60991.0,0.28647897]
[1723284334319,0.001831,60992.0,60991.0,0.28647897]
[1723284334594,0.001831,60992.0,60991.0,0.37218904]
[1723284334810,0.001831,60992.0,60991.0,0.37418904]
[1723284335029,0.002831,60992.0,60991.0,0.37418904]
[1723284335403,0.001831,60992.0,60991.0,0.37218904]
[1723284335573,0.002831,60992.0,60991.0,0.3741879]
[1723284335749,0.001831,60992.0,60991.0,0.3721879]
[1723284335954,0.001831,60992.0,60991.0,0.23602814]
[1723284336156,0.002831,60992.0,60991.0,0.3751879]
[1723284336369,0.001831,60992.0,60991.0,0.3721879]
[1723284336719,0.000831,60992.0,60991.0,0.3751879]
[1723284337128,0.001831,60992.0,60991.0,0.3751879]
[1723284337321,0.083808,60992.0,60991.0,0.2932089]
[1723284337557,0.082808,60992.0,60991.0,0.15704914]
[1723284337751,0.000831,60992.0,60991.0,0.15704914]
[1723284337946,0.001831,60992.0,60991.0,0.15704914]
[1723284338165,0.083808,60992.0,60991.0,0.15704914]
[1723284338408,0.082808,60992.0,60991.0,0.15704914]
[1723284338582,0.082808,60992.0,60991.0,0.15404914]
[1723284338778,0.083808,60992.0,60991.0,0.15604914]
[1723284339989,0.082808,60992.0,60991.0,0.15604914]
[1723284340467,0.083808,60992.0,60991.0,0.15604914]
[1723284341962,0.247763,60992.0,60991.0,0.01594914]
[1723284342164,0.718573,60992.0,60991.0,0.01594914]
[1723284342421,0.718573,60992.0,60991.0,0.0029141]
[1723284343862,0.76764597,60992.0,60991.0,0.0029141]
[1723284344065,0.76765922,60992.0,60991.0,0.0029141]
[1723284344614,0.76766883,60992.0,60991.0,0.0029141]
[1723284344831,0.76766779,60992.0,60991.0,0.0029141]
[1723284345667,0.76767894,60992.0,60991.0,0.0029141]
[1723284346164,0.718573,60992.0,60991.0,0.0029141]
[1723284346366,0.801773,60992.0,60991.0,0.0029141]
[1723284346943,0.800773,60992.0,60991.0,0.0029141]
[1723284347384,0.85088085,60992.0,60991.0,0.0029141]
[1723284347564,0.87540233,60992.0,60991.0,0.0029141]
[1723284347776,0.87440233,60992.0,60991.0,0.0029141]
[1723284347975,0.87440233,60992.0,60991.0,0.0009141]
[1723284348179,0.87540233,60992.0,60991.0,0.0009141]
[1723284348379,0.87840233,60992.0,60991.0,0.0009141]
[1723284348581,0.87540233,60992.0,60991.0,0.0009141]
[1723284348809,0.79730233,60992.0,60991.0,0.0009141]
[1723284349008,0.54693817,60992.0,60991.0,0.0009141]
[1723284349739,0.45983817,60992.0,60991.0,0.0009141]
[1723284349898,0.410718,60992.0,60991.0,0.0009141]
[1723284350099,0.415718,60992.0,60991.0,0.0009141]
[1723284350417,0.410718,60992.0,60991.0,0.0009141]
[1723284350827,0.086808,60992.0,60991.0,0.0009141]
[1723284351203,0.250763,60992.0,60991.0,0.0139592]
[1723284351426,0.250763,60992.0,60991.0,0.0009141]
[1723284351626,0.257763,60992.0,60991.0,0.0139592]
[1723284351823,0.257763,60992.0,60991.0,0.0009141]
[1723284352025,0.257763,60992.0,60991.0,0.0139592]
[1723284352225,0.257763,60992.0,60991.0,0.0009141]
[1723284352465,0.257763,60992.0,60991.0,0.0139592]
[1723284352627,0.257763,60992.0,60991.0,0.0009141]
[1723284352821,0.257763,60992.0,60991.0,0.0139592]
[1723284353022,0.093808,60992.0,60991.0,0.0009141]
[1723284353225,0.011831,60992.0,60991.0,0.0891592]
[1723284353408,0.011831,60992.0,60991.0,0.0761141]
[1723284353609,0.011831,60992.0,60991.0,0.0891592]
[1723284354326,0.011831,60992.0,60991.0,0.1548592]
[1723284354766,0.011831,60992.0,60991.0,0.2368382]
[1723284354917,0.011831,60992.0,60991.0,0.1548592]
[1723284356325,0.004831,60992.0,60991.0,0.1548592]
[1723284356526,0.000831,60992.0,60991.0,0.1548592]
[1723284356843,0.011831,60992.0,60991.0,0.1548592]
[1723284357409,0.007831,60992.0,60991.0,0.1548592]
[1723284357987,0.000831,60992.0,60991.0,0.1548592]
[1723284358447,0.000831,60992.0,60991.0,0.1558592]
[1723284360498,0.000831,60992.0,60991.0,0.29202831]
[1723284360710,0.000831,60992.0,60991.0,0.1558592]
[1723284364582,0.000831,60992.0,60991.0,0.29202431]
[1723284365319,0.000831,60992.0,60991.0,0.29102431]
[1723284366375,0.000831,60992.0,60991.0,0.1548592]
[1723284366576,0.000831,60992.0,60991.0,0.29102423]
[1723284366956,0.000831,60992.0,60991.0,0.1548592]
[1723284367159,0.000831,60992.0,60991.0,0.29102423]
[1723284368611,0.000831,60992.0,60991.0,0.37300323]
[1723284369768,0.000831,60992.0,60991.0,0.29102423]
[1723284370372,0.000831,60992.0,60991.0,0.37300323]
[1723284371698,0.000831,60992.0,60991.0,0.37400323]
[1723284372764,0.000831,60992.0,60991.0,0.53796123]
[1723284373308,0.000831,60992.0,60991.0,0.53795656]
[1723284376338,0.000831,60992.0,60991.0,0.54795656]
[1723284376540,0.000831,60992.0,60991.0,0.70191456]
[1723284377228,0.000831,60992.0,60991.0,0.5657542]
[1723284377502,0.000831,60992.0,60991.0,0.53795463]
[1723284377739,0.000831,60992.0,60991.0,0.53795446]
[1723284383060,0.000831,60992.0,60991.0,0.54795446]
[1723284384440,0.000831,60992.0,60991.0,0.4117962]
[1723284384611,0.000831,60992.0,60991.0,0.54795322]
[1723284384809,0.000831,60992.0,60991.0,0.71191122]
[1723284385294,0.000831,60992.0,60991.0,0.71391122]
[1723284385913,0.001831,60992.0,60991.0,0.71391122]
[1723284386133,0.001831,60992.0,60991.0,0.71291122]
[1723284387344,0.001831,60992.0,60991.0,0.71691122]
[1723284387547,0.001831,60992.0,60991.0,0.70491122]
[1723284388073,0.001831,60992.0,60991.0,0.5687542]
[1723284388291,0.001831,60992.0,60991.0,0.70490397]
[1723284390243,0.001831,60992.0,60991.0,0.71490397]
[1723284390603,0.001831,60992.0,60991.0,0.70490397]
[1723284391304,0.001831,60992.0,60991.0,0.71490397]
[1723284391505,0.001831,60992.0,60991.0,0.70490397]
[1723284392138,0.001831,60992.0,60991.0,0.71490397]
[1723284393126,0.001831,60992.0,60991.0,0.70490397]
[1723284393525,0.001831,60992.0,60991.0,0.71490397]
[1723284393777,0.001831,60992.0,60991.0,0.70490397]
[1723284395267,0.001831,60992.0,60991.0,0.71490058]
[1723284396525,0.001831,60992.0,60991.0,1.0526735]
[1723284396724,0.001831,60992.0,60991.0,0.8987155]
[1723284398571,0.001831,60992.0,60991.0,0.76256912]
[1723284398769,0.001831,60992.0,60991.0,0.89871479]
[1723284400368,0.000831,60992.0,60991.0,0.89871479]
[1723284400564,0.000831,60992.0,60991.0,0.87471479]
[1723284400865,0.002831,60992.0,60991.0,0.87871479]
[1723284401065,0.002831,60992.0,60991.0,1.06633239]
[1723284401306,0.001831,60992.0,60991.0,0.87471479]
[1723284401675,0.001831,60992.0,60991.0,0.87871479]
[1723284401879,0.001831,60992.0,60991.0,0.89871479]
[1723284402112,0.002831,60992.0,60991.0,0.89871479]
[1723284405554,0.002831,60992.0,60991.0,0.878712]
[1723284406259,0.002831,60992.0,60991.0,0.898712]
[1723284407433,0.002831,60992.0,60991.0,1.08621443]
[1723284408134,0.002831,60992.0,60991.0,0.72844151]
[1723284408347,0.067331,60992.0,60991.0,0.15410208]
[1723284408549,0.394563,60992.0,60991.0,0.15410208]
[1723284408752,0.44371546,60992.0,60991.0,0.0179592]
[1723284408958,0.44271546,60992.0,60991.0,0.0009141]
[1723284409414,0.393563,60992.0,60991.0,0.0009141]
[1723284409619,0.44271546,60992.0,60991.0,0.0009141]
[1723284409948,0.44171546,60992.0,60991.0,0.0009141]
[1723284410150,0.46629169,60992.0,60991.0,0.0009141]
[1723284410392,0.46729169,60992.0,60991.0,0.0109141]
[1723284410595,0.46729169,60992.0,60991.0,0.0059141]
[1723284410973,0.46829169,60992.0,60991.0,0.0059141]
[1723284411181,0.46729169,60992.0,60991.0,0.0059141]
[1723284411373,0.392563,60992.0,60991.0,0.0009141]
[1723284411676,0.394563,60992.0,60991.0,0.0009141]
[1723284411879,0.31045446,60992.0,60991.0,0.0009141]
[1723284412087,0.71746446,60992.0,60991.0,0.0009141]
[1723284412217,1.04523438,60992.0,60991.0,0.0009141]
[1723284412618,1.14352405,60992.0,60991.0,0.0009141]
[1723284413001,1.24352405,60992.0,60991.0,0.0009141]
[1723284413448,1.24252405,60992.0,60991.0,0.0009141]
[1723284413727,1.24452405,60992.0,60991.0,0.0009141]
[1723284414066,1.16442405,60992.0,60991.0,0.0009141]
[1723284414283,1.24352405,60992.0,60991.0,0.0009141]
[1723284414493,1.15623438,60992.0,60991.0,0.0019141]
[1723284414760,1.15523438,60992.0,60991.0,0.0019141]
[1723284414977,1.14423438,60992.0,60991.0,0.0009141]
[1723284415119,1.15323438,60992.0,60991.0,0.0029141]
[1723284415325,1.23791411,60992.0,60991.0,0.0029141]
[1723284415847,1.15606765,60992.0,60991.0,0.0029141]
[1723284416402,1.15606765,60992.0,60991.0,0.0019141]
[1723284416403,1.14706765,60992.0,60991.0,0.0019141]
[1723284416624,1.15606765,60992.0,60991.0,0.0029141]
[1723284417144,1.13606765,60992.0,60991.0,0.0009141]
[1723284417376,1.14706765,60992.0,60991.0,0.0019141]
[1723284417555,1.15606765,60992.0,60991.0,0.0019141]
[1723284417755,1.14506765,60992.0,60991.0,0.0019141]
[1723284417959,1.15606765,60992.0,60991.0,0.0029141]
[1723284418255,1.13606765,60992.0,60991.0,0.0009141]
[1723284418471,1.06238792,60992.0,60991.0,0.0019141]
[1723284418663,1.07338792,60992.0,60991.0,0.0019141]
[1723284419406,1.12248123,60992.0,60991.0,0.0029141]
[1723284419741,1.12048123,60992.0,60991.0,0.0019141]
[1723284420128,1.11948123,60992.0,60991.0,0.0019141]
[1723284420310,1.11848123,60992.0,60991.0,0.0019141]
[1723284420940,1.13036463,60992.0,60991.0,0.0019141]
[1723284421335,1.13636463,60992.0,60991.0,0.0029141]
[1723284421535,1.12736463,60992.0,60991.0,0.0019141]
[1723284422692,1.12136463,60992.0,60991.0,0.0009141]
[1723284422837,1.07227132,60992.0,60991.0,0.0019141]
[1723284423037,1.08727132,60992.0,60991.0,0.0029141]
[1723284423233,1.07927132,60992.0,60991.0,0.0019141]
[1723284423438,1.07227132,60992.0,60991.0,0.0009141]
[1723284423652,1.07927132,60992.0,60991.0,0.0019141]
[1723284423855,1.07827132,60992.0,60991.0,0.0019141]
[1723284424249,1.26822632,60992.0,60991.0,0.0019141]
[1723284424631,1.27522632,60992.0,60991.0,0.0029141]
[1723284425012,1.26622632,60992.0,60991.0,0.0019141]
[1723284425960,1.25922632,60992.0,60991.0,0.0009141]
[1723284426173,1.19012632,60992.0,60991.0,0.0019141]
[1723284426376,1.23790134,60992.0,60991.0,0.0029141]
[1723284426712,1.13680134,60992.0,60991.0,0.0029141]
[1723284426887,0.4158082,60992.0,60991.0,0.0029141]
[1723284427104,0.366763,60992.0,60991.0,0.0029141]
[1723284428772,0.020831,60992.0,60991.0,0.0029141]
[1723284428972,0.020831,60992.0,60991.0,0.4685511]
[1723284429194,0.020831,60992.0,60991.0,0.48365773]
[1723284429407,0.020831,60992.0,60991.0,0.31969973]
[1723284429880,0.020831,60992.0,60991.0,0.15962073]
[1723284430237,0.000831,60992.0,60991.0,0.15762073]
[1723284430359,0.006831,60992.0,60991.0,0.15762073]
[1723284430565,0.002831,60992.0,60991.0,0.15762073]
[1723284430768,0.000831,60992.0,60991.0,0.15762073]
[1723284430975,0.246763,60992.0,60991.0,0.02102073]
[1723284431218,0.475718,60992.0,60991.0,0.02102073]
[1723284431419,0.311763,60992.0,60991.0,0.0059141]
[1723284431761,0.000831,60992.0,60991.0,0.0807141]
[1723284432073,0.000831,60992.0,60991.0,0.09581356]
[1723284432734,0.000831,60992.0,60991.0,0.16361356]
[1723284433035,0.001831,60992.0,60991.0,0.24559256]
[1723284433469,0.000831,60992.0,60991.0,0.15761356]
[1723284433656,0.000831,60992.0,60991.0,0.16161356]
[1723284434054,0.001831,60992.0,60991.0,0.16161356]
[1723284434257,0.000831,60992.0,60991.0,0.15761356]
[1723284434459,0.083808,60992.0,60991.0,0.16461356]
[1723284434689,0.084808,60992.0,60991.0,0.10881356]
[1723284434962,0.002831,60992.0,60991.0,0.10881356]
[1723284435596,0.002831,60992.0,60991.0,0.19079256]
[1723284435918,0.001831,60992.0,60991.0,0.18379256]
[1723284436357,0.001831,60992.0,60991.0,0.10681356]
[1723284437075,0.001831,60992.0,60991.0,0.10181356]
[1723284437220,0.002831,60992.0,60991.0,0.10981356]
[1723284438355,0.149808,60992.0,60991.0,0.03001356]
[1723284438897,0.149808,60992.0,60991.0,0.0149141]
[1723284439516,0.084808,60992.0,60991.0,0.03000074]
[1723284439735,0.084808,60992.0,60991.0,0.0149141]
[1723284439937,0.084808,60992.0,60991.0,0.03000074]
[1723284440099,0.084808,60992.0,60991.0,0.0149141]
[1723284440304,0.084808,60992.0,60991.0,0.03000074]
[1723284441249,0.084808,60992.0,60991.0,1.03000074]
[1723284446713,0.002831,60992.0,60991.0,1.03000074]
[1723284447748,0.084808,60992.0,60991.0,1.03000074]
[1723284449655,0.002831,60992.0,60991.0,1.03000074]
[1723284450409,0.002831,60992.0,60991.0,1.17310074]
[1723284456304,0.002831,60992.0,60991.0,1.30926462]
[1723284457263,0.002831,60992.0,60991.0,1.39124362]
[1723284459474,0.002831,60992.0,60991.0,1.55520162]
[1723284459796,0.002831,60992.0,60991.0,1.71915962]
[1723284460033,0.002831,60992.0,60991.0,2.07691975]
[1723284460236,0.002831,60992.0,60991.0,1.91296175]
[1723284460847,0.002831,60992.0,60991.0,1.91496175]
[1723284461002,0.002831,60992.0,60991.0,1.91296175]
[1723284461409,0.002831,60992.0,60991.0,1.89296041]
[1723284461614,0.002831,60992.0,60991.0,1.97106041]
[1723284462656,0.002831,60992.0,60991.0,1.98063671]
[1723284463479,0.002831,60992.0,60991.0,2.00063955]
[1723284463681,0.002831,60992.0,60991.0,1.98063955]
[1723284464045,0.002831,60992.0,60991.0,1.9806386]
[1723284465082,0.002831,60992.0,60991.0,2.0006386]
[1723284465282,0.002831,60992.0,60991.0,2.00063862]
[1723284465598,0.002831,60992.0,60991.0,1.98063862]
[1723284465796,0.002831,60992.0,60991.0,2.00063862]
[1723284466642,0.002831,60992.0,60991.0,2.16659662]
[1723284466844,0.002831,60992.0,60991.0,2.00263862]
[1723284467341,0.002831,60992.0,60991.0,2.00263168]
[1723284467917,0.002831,60992.0,60991.0,2.16658968]
[1723284468104,0.002831,60992.0,60991.0,2.00263168]
[1723284468315,0.002831,60992.0,60991.0,2.16658968]
[1723284468810,0.002831,60992.0,60991.0,2.00263168]
[1723284470181,0.002831,60992.0,60991.0,2.16658968]
[1723284470385,0.002831,60992.0,60991.0,2.00263168]
[1723284470582,0.002831,60992.0,60991.0,2.16658968]
[1723284470759,0.002831,60992.0,60991.0,2.16658818]
[1723284471195,0.002831,60992.0,60991.0,2.00263018]
[1723284471596,0.002831,60992.0,60991.0,1.98063018]
[1723284471798,0.002831,60992.0,60991.0,2.00263018]
[1723284472023,0.002831,60992.0,60991.0,2.16658818]
[1723284472640,0.002831,60992.0,60991.0,2.00063018]
[1723284472954,0.002831,60992.0,60991.0,1.98063018]
[1723284473432,0.002831,60992.0,60991.0,1.16614396]
[1723284473573,0.147031,60992.0,60991.0,1.03000074]
[1723284473984,0.147031,60992.0,60991.0,1.11197974]
[1723284474187,0.066831,60992.0,60991.0,1.11642303]
[1723284474684,0.066831,60992.0,60991.0,1.28038103]
[1723284474889,0.002831,60992.0,60991.0,1.28038103]
[1723284475115,0.002831,60992.0,60991.0,1.11642303]
[1723284476201,0.002831,60992.0,60991.0,1.28038103]
[1723284476320,0.002831,60992.0,60991.0,1.49464832]
[1723284477568,0.002831,60992.0,60991.0,1.25259032]
[1723284477969,0.002831,60992.0,60991.0,1.41654832]
[1723284481050,0.002831,60992.0,60991.0,1.41654002]
[1723284481691,0.002831,60992.0,60991.0,1.25258202]
[1723284482447,0.002831,60992.0,60991.0,1.41654002]
[1723284484117,0.002831,60992.0,60991.0,1.35848103]
[1723284484322,0.002831,60992.0,60991.0,1.49464048]
[1723284484529,0.002831,60992.0,60991.0,1.35848103]
[1723284484775,0.002831,60992.0,60991.0,1.49463856]
[1723284485175,0.002831,60992.0,60991.0,2.16136948]
[1723284485514,0.002831,60992.0,60991.0,2.35891658]
[1723284485738,0.002831,60992.0,60991.0,2.42698428]
[1723284485999,0.002831,60992.0,60991.0,2.4269842]
[1723284486151,0.002831,60992.0,60991.0,2.42698401]
[1723284486671,0.002831,60992.0,60991.0,2.40498401]
[1723284486904,0.000832,61001.0,60991.0,2.32300501]
[1723284487110,0.000832,61001.0,61000.0,0.575535]
[1723284487273,0.000832,61001.0,61000.0,0.87550745]
[1723284487464,0.000832,61001.0,61000.0,0.89548574]
[1723284487662,0.000832,61001.0,61000.0,0.75932821]
[1723284487867,0.000832,61001.0,61000.0,0.89545926]
[1723284488235,0.002832,61001.0,61000.0,0.89545926]
[1723284488841,0.006832,61001.0,61000.0,0.89545926]
[1723284489077,0.000832,61001.0,61000.0,0.89545926]
[1723284489261,0.000832,61001.0,61000.0,0.88545926]
[1723284489488,0.004832,61001.0,61000.0,0.89545926]
[1723284490034,0.004832,61001.0,61000.0,0.72164434]
[1723284490247,0.000832,61001.0,61000.0,0.72164434]
[1723284490800,0.002832,61001.0,61000.0,0.72164434]
[1723284491243,0.002832,61001.0,61000.0,0.72164536]
[1723284491402,0.000832,61001.0,61000.0,0.72164536]
[1723284491597,0.000832,61001.0,61000.0,0.72564536]
[1723284491990,0.001832,61001.0,61000.0,0.72564536]
[1723284492570,0.000832,61001.0,61000.0,0.72564536]
[1723284492968,0.000832,61001.0,61000.0,0.72864536]
[1723284494907,0.000832,61001.0,61000.0,0.72864251]
[1723284495307,0.000832,61001.0,61000.0,0.72864167]
[1723284495469,0.000832,61001.0,61000.0,0.73831284]
[1723284495864,0.000832,61001.0,61000.0,0.74831284]
[1723284496064,0.000832,61001.0,61000.0,0.73831284]
[1723284496274,0.000832,61001.0,61000.0,0.74831341]
[1723284498504,0.000832,61001.0,61000.0,0.74831284]
[1723284500028,0.000832,61001.0,61000.0,0.91224684]
[1723284500385,0.000832,61001.0,61000.0,2.08606176]
[1723284500590,0.000832,61001.0,61000.0,2.58039274]
[1723284500794,0.000832,61001.0,61000.0,2.850525]
[1723284501038,0.000832,61001.0,61000.0,2.9483973]
[1723284501549,0.000832,61001.0,61000.0,2.92384919]
[1723284501693,0.000832,61001.0,61000.0,2.91984919]
[1723284501896,0.000832,61001.0,61000.0,2.91672758]
[1723284502231,0.000832,61001.0,61000.0,2.93050613]
[1723284502232,0.001832,61001.0,61000.0,2.93050613]
[1723284502614,0.000832,61001.0,61000.0,2.91650613]
[1723284502813,0.000832,61001.0,61000.0,2.93048411]
[1723284503035,0.001832,61001.0,61000.0,2.93048411]
[1723284503200,0.000832,61001.0,61000.0,2.72341722]
[1723284503399,0.001832,61001.0,61000.0,2.71297185]
[1723284503600,0.002832,61001.0,61000.0,2.74997185]
[1723284503847,0.001832,61001.0,61000.0,2.73597185]
[1723284503999,0.000832,61001.0,61000.0,2.72197185]
[1723284504401,0.000832,61001.0,61000.0,2.73597185]
[1723284504402,0.001832,61001.0,61000.0,2.73597185]
[1723284504601,0.001832,61001.0,61000.0,2.92392936]
[1723284504827,0.001832,61001.0,61000.0,2.78783144]
[1723284505242,0.002832,61001.0,61000.0,2.37570257]
[1723284505443,0.002832,61001.0,61000.0,2.32684577]
[1723284506447,0.002832,61001.0,61000.0,2.71894995]
[1723284506704,0.002832,61001.0,61000.0,2.32684577]
[1723284507294,0.002832,61001.0,61000.0,2.56501711]
[1723284507592,0.002832,61001.0,61000.0,2.49696974]
[1723284507882,0.002832,61001.0,61000.0,3.05958173]
[1723284508381,0.002832,61001.0,61000.0,2.87124199]
[1723284508614,0.002832,61001.0,61000.0,3.22351524]
[1723284508827,0.000832,61012.0,61011.0,0.991268]
[1723284509044,0.000832,61012.0,61011.0,1.3911821]
[1723284509247,0.000832,61012.0,61011.0,1.40595771]
[1723284510227,0.000832,61012.0,61011.0,1.47915276]
[1723284510865,0.000832,61012.0,61011.0,1.48189513]
[1723284511174,0.000832,61012.0,61011.0,1.49289513]
[1723284512180,0.000832,61012.0,61011.0,1.5037368]
[1723284512392,0.000832,61012.0,61011.0,1.43569925]
[1723284512538,0.000832,61012.0,61011.0,1.50373649]
[1723284513326,0.000832,61012.0,61011.0,2.21663097]
[1723284513521,0.0205,61017.0,61016.0,0.605618]
[1723284513743,0.0205,61017.0,61016.0,1.231142]
[1723284513918,0.0205,61017.0,61016.0,1.4097745]
[1723284514814,0.0205,61017.0,61016.0,1.4167745]
[1723284515266,0.0205,61017.0,61016.0,1.34873726]
[1723284515474,0.0205,61017.0,61016.0,1.36273726]
[1723284515611,0.0205,61017.0,61016.0,1.34873726]
[1723284516010,0.0205,61017.0,61016.0,1.35573726]
[1723284516421,0.0205,61017.0,61016.0,1.36972501]
[1723284516839,0.0205,61017.0,61016.0,1.35572501]
[1723284517242,0.0205,61017.0,61016.0,1.43382501]
[1723284518252,0.021332,61017.0,61016.0,1.41982501]
[1723284518455,0.021332,61017.0,61016.0,2.29671601]
[1723284518585,0.021332,61017.0,61016.0,1.66074441]
[1723284518771,0.021332,61017.0,61016.0,1.66565165]
[1723284518969,0.021332,61017.0,61016.0,1.67471156]
[1723284519176,0.021332,61017.0,61016.0,1.66071156]
[1723284519378,0.021332,61017.0,61016.0,1.83076221]
[1723284519591,0.021332,61017.0,61016.0,1.85876221]
[1723284519963,0.021332,61017.0,61016.0,1.76273381]
[1723284520176,0.000832,61024.0,61023.0,0.769424]
[1723284520381,0.00832,61030.0,61028.0,0.499488]
[1723284520590,0.00832,61030.0,61028.0,1.06320809]
[1723284520790,0.00832,61030.0,61028.0,1.3243569]
[1723284520984,0.00832,61030.0,61028.0,1.1804979]
[1723284521350,0.00832,61030.0,61028.0,1.3463569]
[1723284521554,0.00832,61030.0,61028.0,1.4334569]
[1723284521755,0.00832,61030.0,61028.0,1.4474569]
[1723284522217,0.00832,61030.0,61028.0,1.4334569]
[1723284522373,0.00832,61030.0,61028.0,1.4474569]
[1723284522967,0.00832,61030.0,61028.0,1.44312566]
[1723284523152,0.00832,61030.0,61028.0,1.45712566]
[1723284523317,0.00832,61030.0,61028.0,1.47112566]
[1723284523884,0.0612,61048.0,61032.0,0.1756]
[1723284524130,1e-08,61033.0,61032.0,1.65615869]
[1723284524393,0.0649,61050.0,61048.0,0.275707]
[1723284524594,0.00832,61053.0,61048.0,0.92203192]
[1723284524865,0.00832,61053.0,61048.0,0.94140201]
[1723284525019,0.00832,61053.0,61048.0,1.07741028]
[1723284525252,0.00832,61053.0,61048.0,1.24121528]
[1723284525752,0.00832,61053.0,61048.0,1.36451528]
[1723284525953,0.00832,61053.0,61048.0,1.35437662]
[1723284526146,0.00832,61053.0,61048.0,1.47637662]
[1723284526345,0.00832,61053.0,61048.0,1.49037662]
[1723284526904,0.00832,61053.0,61048.0,1.50437662]
[1723284527174,0.00832,61053.0,61048.0,1.11716008]
[1723284527364,0.07323,61051.0,61048.0,1.06036008]
[1723284527494,0.07323,61051.0,61048.0,1.02636008]
[1723284527884,0.07323,61051.0,61048.0,1.04636008]
[1723284528096,0.07323,61051.0,61048.0,1.06036008]
[1723284528290,0.07323,61051.0,61048.0,1.01236008]
[1723284528695,0.07323,61051.0,61048.0,1.04636008]
[1723284528917,0.07323,61051.0,61048.0,1.03236008]
[1723284529317,0.07323,61051.0,61048.0,1.02636008]
[1723284529526,0.07323,61051.0,61048.0,1.04636008]
[1723284529721,0.07323,61051.0,61048.0,1.04036008]
[1723284529947,0.07323,61051.0,61048.0,1.06036008]
[1723284530261,0.000932,61049.0,61048.0,1.04636008]
[1723284530501,0.000932,61049.0,61048.0,0.92436335]
[1723284530703,0.000932,61049.0,61048.0,2.06036602]
[1723284531090,0.000932,61049.0,61048.0,2.06036601]
[1723284532282,0.000932,61049.0,61048.0,2.06236601]
[1723284534167,0.000932,61049.0,61048.0,2.06036601]
[1723284534379,0.146032,61049.0,61048.0,1.46675335]
[1723284534578,0.146032,61049.0,61048.0,1.75670995]
[1723284535164,0.146032,61049.0,61048.0,1.74270995]
[1723284535368,0.146032,61049.0,61048.0,1.75670995]
[1723284535588,0.14255434,61049.0,61048.0,1.75670995]
[1723284535791,0.14255434,61049.0,61048.0,1.59269701]
[1723284535969,0.14255434,61049.0,61048.0,1.42889201]
[1723284536330,0.14255434,61049.0,61048.0,1.28807709]
[1723284536527,0.14255434,61049.0,61048.0,1.43788209]
[1723284536870,0.14255434,61049.0,61048.0,1.45188209]
[1723284537054,0.14255434,61049.0,61048.0,1.04237009]
[1723284537414,0.14255434,61049.0,61048.0,1.01937009]
[1723284537572,0.22445534,61049.0,61048.0,1.03037009]
[1723284537799,0.22445534,61049.0,61048.0,1.04437009]
[1723284538005,0.55205934,61049.0,61048.0,1.03037009]
[1723284538395,0.38825734,61049.0,61048.0,1.03937009]
[1723284538590,0.38825734,61049.0,61048.0,1.03037009]
[1723284538816,0.38825734,61049.0,61048.0,1.02737009]
[1723284539358,0.38825734,61049.0,61048.0,1.03837009]
[1723284539712,0.38825734,61049.0,61048.0,1.02737009]
[1723284540555,0.38825734,61049.0,61048.0,1.01937009]
[1723284542169,0.38908834,61049.0,61048.0,1.01937009]
[1723284545426,0.14338534,61049.0,61048.0,1.10127209]
[1723284545627,0.065731,61049.0,61048.0,1.10127209]
[1723284545842,0.000831,61049.0,61048.0,1.10127209]
[1723284547170,0.000831,61049.0,61048.0,1.23729604]
[1723284547376,0.000831,61049.0,61048.0,1.10127209]
[1723284547535,0.000831,61049.0,61048.0,1.23729606]
[1723284548189,0.000831,61049.0,61048.0,1.40110106]
[1723284548394,0.000831,61049.0,61048.0,1.56490606]
[1723284548594,0.000831,61049.0,61048.0,2.15442598]